[Event "7th Cattolica Open-B 2020"]
[Site "Cattolica"]
[Date "2020.09.02"]
[Round "3.5"]
[White "Guglielmi, Dante"]
[Black "Urbani, Gabriel"]
[Result "0-1"]
[ECO "E14"]
[WhiteElo "1727"]
[BlackElo "1737"]
[Annotator "NA RC"]
[PlyCount "128"]
[EventDate "2020.08.31"]
[EventType "swiss"]
[EventCountry "ITA"]
[SourceTitle "playchess.com"]
[Source "ChessBase"]
[SourceQuality "1"]
[TimeControl "5400+30"]

1. c4 {[%emt 0:00:00]} e6 {[%emt 0:00:01]} 2. Nf3 {[%emt 0:00:00]} d5 {[%emt 0:00:23]} 3. e3 {[%emt 0:00:08]} Nf6 {[%emt 0:00:32]} 4. b3 {[%emt 0:00:20]} Be7 {[%emt 0:02:30]} 5. Be2 {[%emt 0:00:15]} O-O {[%emt 0:00:41]} 6. O-O {[%emt 0:00:00]} Nbd7 {[%emt 0:01:27]} 7. Bb2 {[%emt 0:00:17]} b6 {[%emt 0:01:06]} 8. Nc3 {[%emt 0:02:08]} Bb7 {[%emt 0:01:07]} 9. Rc1 {[%emt 0:01:20]} c5 {[%emt 0:01:10]} 10. d4 {[%emt 0:02:07]} Rc8 {[%emt 0:03:09]} 11. cxd5 {[%emt 0:20:21]} Nxd5 {[%emt 0:06:33]} 12. Nxd5 {[%emt 0:01:54]} Bxd5 {[%emt 0:00:49]} 13. Ba6 {[%emt 0:02:50]} Rb8 {[%emt 0:01:13]} 14. Qe2 {[%emt 0:03:02]} Bd6 {[%emt 0:10:40]} 15. Rfd1 {[%emt 0:02:40]} Qe7 {[%emt 0:15:18]} 16. e4 {[%emt 0:09:13]} Ba8 {[%emt 0:02:07]} 17. Bc4 {[%emt 0:13:04]} Bf4 {[%emt 0:07:18]} 18. Rc2 {[%emt 0:04:33]} cxd4 {[%emt 0:04:05]} 19. Nxd4 {[%emt 0:05:21]} Nc5 {[%emt 0:01:22]} 20. f3 {[%emt 0:05:44]} Rbd8 {[%emt 0:04:14]} 21. Bc1 {[%emt 0:02:37]} Bb8 {[%emt 0:01:35]} 22. Be3 {[%emt 0:01:34]} Qd6 {[%emt 0:00:44]} 23. f4 {[%emt 0:02:05]} Nxe4 {[%emt 0:00:00]} 24. Rcc1 {[%emt 0:01:05]} Qe7 {[%emt 0:07:50]} 25. Bb5 {[%emt 0:02:26]} e5 {[%emt 0:01:15]} 26. fxe5 {[%emt 0:07:27]} Qxe5 {[%emt 0:00:17]} 27. g3 {[%emt 0:02:22]} Nc5 {[%emt 0:06:57]} 28. Bc6 {[%emt 0:03:44]} Rxd4 {[%emt 0:05:21]} 29. Bxa8 {[%emt 0:00:16]} Rxd1+ {[%emt 0:00:28]} 30. Rxd1 {[%emt 0:00:07]} h6 {[%emt 0:03:25]} 31. Qf2 {[%emt 0:04:46]} Ne4 {[%emt 0:08:58]} 32. Qf3 {[%emt 0:00:13]} Ng5 {[%emt 0:00:06]} 33. Bxg5 {[%emt 0:01:49]} Qxg5 {[%emt 0:00:05]} 34. Bd5 {[%emt 0:00:32]} Bd6 {[%emt 0:00:53]} 35. Qe4 {[%emt 0:00:32]} Rd8 {[%emt 0:01:30]} 36. Qc4 {[%emt 0:00:28]} Qe7 {[%emt 0:00:41]} 37. Rf1 {[%emt 0:00:26]} Rf8 {[%emt 0:00:21]} 38. Kg2 {[%emt 0:00:28]} Bc5 {[%emt 0:00:21]} 39. Qe4 {[%emt 0:00:41]} Qxe4+ {[%emt 0:00:32]} 40. Bxe4 {[%emt 0:00:06]} Re8 {[%emt 0:00:08]} 41. Bd5 {[%emt 0:00:25]} Re7 {[%emt 0:00:09]} 42. a4 {[%emt 0:00:26]} Kf8 {[%emt 0:00:13]} 43. Bc6 {[%emt 0:00:38]} Re2+ {[%emt 0:00:32]} 44. Kh3 {[%emt 0:00:17]} f6 {[%emt 0:00:05]} 45. Rd1 {[%emt 0:00:31]} a5 {[%emt 0:00:16]} 46. Bb5 {[%emt 0:00:16]} Rb2 {[%emt 0:00:22]} 47. Bc4 {[%emt 0:00:19]} g5 {[%emt 0:00:13]} 48. Rh1 {[%emt 0:01:32]} h5 {[%emt 0:00:33]} 49. Bd5 {[%emt 0:00:21]} Kg7 {[%emt 0:00:26]} 50. Bc4 {[%emt 0:00:39]} Kh6 {[%emt 0:00:15]} 51. Be6 {[%emt 0:00:31]} g4+ {[%emt 0:00:51]} 52. Bxg4 {[%emt 0:00:29]} hxg4+ {[%emt 0:00:05]} 53. Kxg4 {[%emt 0:00:10]} Rxb3 {[%emt 0:00:05]} 54. Kf5 {[%emt 0:00:24]} Bd4 {[%emt 0:05:43]} 55. Rd1 {[%emt 0:00:18]} Rb4 {[%emt 0:00:00]} 56. h3 {[%emt 0:00:33]} Rxa4 {[%emt 0:00:00]} 57. g4 {[%emt 0:00:12]} Rc4 {[%emt 0:00:00]} 58. h4 {[%emt 0:00:18]} a4 {[%emt 0:00:00]} 59. g5+ {[%emt 0:00:25]} fxg5 {[%emt 0:00:00]} 60. hxg5+ {[%emt 0:00:07]} Kg7 {[%emt 0:00:00]} 61. Re1 {[%emt 0:00:25]} a3 {[%emt 0:00:00]} 62. Re7+ {[%emt 0:00:20]} Kf8 {[%emt 0:00:00]} 63. Ra7 {[%emt 0:00:09]} Rc5+ {[%emt 0:00:00]} 64. Ke4 {[%emt 0:00:44]} Ra5 {[%emt 0:00:00]} 0-1

[Event "7th Cattolica Open-B 2020"]
[Site "Cattolica"]
[Date "2020.09.02"]
[Round "3.6"]
[White "Magnaterra, Michele"]
[Black "Palozza, Flavio"]
[Result "1-0"]
[ECO "E32"]
[WhiteElo "1524"]
[BlackElo "1619"]
[Annotator "NA RC"]
[PlyCount "81"]
[EventDate "2020.08.31"]
[EventType "swiss"]
[EventCountry "ITA"]
[SourceTitle "playchess.com"]
[Source "ChessBase"]
[SourceQuality "1"]
[TimeControl "5400+30"]

1. d4 {[%emt 0:00:00]} Nf6 {[%emt 0:00:00]} 2. c4 {[%emt 0:00:00]} e6 {[%emt 0:00:00]} 3. Nc3 {[%emt 0:00:00]} Bb4 {[%emt 0:00:00]} 4. Qc2 {[%emt 0:00:00]} b6 {[%emt 0:00:00]} 5. a3 {[%emt 0:00:37]} Bxc3+ {[%emt 0:00:17]} 6. Qxc3 {[%emt 0:00:02]} Bb7 {[%emt 0:00:33]} 7. Bg5 {[%emt 0:07:46]} h6 {[%emt 0:02:36]} 8. Bh4 {[%emt 0:00:35]} g5 {[%emt 1:30:34]} 9. Bg3 {[%emt 0:00:17]} Ne4 {[%emt 0:00:00]} 10. Qc2 f5 {[%emt 0:00:00]} 11. e3 d6 {[%emt 0:01:30]} 12. f3 {[%emt 1:26:43]} Nxg3 {[%emt 0:00:00]} 13. hxg3 {[%emt 0:00:00]} Qf6 {[%emt 0:00:00]} 14. Bd3 {[%emt 0:00:00]} O-O {[%emt 0:00:00]} 15. O-O-O {[%emt 0:00:00]} Nc6 {[%emt 0:00:00]} 16. Kb1 {[%emt 0:00:00]} Ne7 {[%emt 0:00:00]} 17. g4 {[%emt 0:00:00]} fxg4 {[%emt 0:00:00]} 18. fxg4 {[%emt 0:00:00]} Qg7 {[%emt 0:00:00]} 19. Nf3 {[%emt 0:00:00]} Rf6 {[%emt 0:00:00]} 20. Be4 {[%emt 0:00:00]} Bxe4 {[%emt 0:00:00]} 21. Qxe4 {[%emt 0:00:00]} Raf8 {[%emt 0:00:00]} 22. Rh3 {[%emt 0:00:00]} Qg6 {[%emt 0:00:00]} 23. Qxg6+ {[%emt 0:00:00]} Rxg6 {[%emt 0:00:00]} 24. Rdh1 {[%emt 0:00:00]} Kg7 {[%emt 0:00:00]} 25. Kc2 {[%emt 0:00:00]} Ng8 {[%emt 0:00:00]} 26. Kd3 {[%emt 0:00:00]} Nf6 {[%emt 0:00:00]} 27. Rg3 {[%emt 0:00:00]} Rd8 {[%emt 0:00:00]} 28. e4 {[%emt 0:00:00]} Rf8 {[%emt 0:00:00]} 29. e5 {[%emt 0:00:00]} Nd7 {[%emt 0:00:00]} 30. Re1 {[%emt 0:00:00]} Rf4 {[%emt 0:00:00]} 31. Re4 {[%emt 0:00:00]} a6 {[%emt 0:03:07]} 32. Ke3 {[%emt 0:00:00]} Rxe4+ {[%emt 0:02:02]} 33. Kxe4 {[%emt 0:10:30]} Kf7 34. b4 {[%emt 0:00:00]} Ke7 {[%emt 0:01:08]} 35. Rh3 {[%emt 0:00:00]} a5 {[%emt 0:02:44]} 36. bxa5 {[%emt 0:00:00]} bxa5 {[%emt 0:00:01]} 37. Rh1 {[%emt 0:00:00]} Nb6 {[%emt 0:00:47]} 38. Kd3 {[%emt 0:00:00]} Kd7 {[%emt 0:01:36]} 39. Rb1 {[%emt 0:00:00]} d5 {[%emt 0:01:19]} 40. cxd5 {[%emt 0:00:00]} Nxd5 {[%emt 0:01:46]} 41. Rb5 {[%emt 0:00:00]} 1-0

[Event "7th Cattolica Open-B 2020"]
[Site "Cattolica"]
[Date "2020.09.02"]
[Round "3.7"]
[White "Mammi, Ottavio"]
[Black "D`Agostino, Maurizio"]
[Result "0-1"]
[ECO "D35"]
[WhiteElo "1633"]
[BlackElo "1893"]
[Annotator "NA RC"]
[PlyCount "121"]
[EventDate "2020.08.31"]
[EventType "swiss"]
[EventCountry "ITA"]
[SourceTitle "playchess.com"]
[Source "ChessBase"]
[SourceQuality "1"]
[TimeControl "5400+30"]

{[%evp 10,121,5,0,4,-11,0,0,0,0,0,10,51,0,0,-28,108,43,44,18,70,53,40,0,23,25,26,27,69,64,84,-130,149,95,122,66,78,47,72,40,52,-204,-194,-290,-280,-253,-289,-273,-296,-303,-296,-296,-233,-256,-235,-266,-260,-256,-257,-287,-302,-316,-325,-361,-292,-327,-318,-347,-331,-483,-422,-583,-673,-1254,-852,-2262,-1154,-1135,-1274,-1054,-1402,-1365,-1776,-1597,-1343,-1460,-1706,-2138,-1800,-29973,-2176,-29991,-1156,-29991,-29992,-29992,-29993,-29995,-29994,-29996,-29997,-29997,-29996,-29996,-1646,-29996,-1699,-29996,-1835,-29996,-29997,-29997,-2504,-29998]} 1. c4 {[%emt 0:00:28]} e6 {[%emt 0:00:00]} 2. Nc3 {[%emt 0:00:10]} d5 {[%emt 0:00:15]} 3. cxd5 {[%emt 0:01:07]} exd5 {[%emt 0:00:06]} 4. d4 {[%emt 0:00:09]} c6 {[%emt 0:01:10]} 5. Bf4 {[%emt 0:00:40]} Bd6 {[%emt 0:01:22]} 6. Bg3 {[%emt 0:00:09]} Nf6 {[%emt 0:00:57]} 7. Nf3 {[%emt 0:01:38]} Bxg3 {[%emt 0:01:26] D35: Queen's Gambit Declined: Exchange Variation.} 8. hxg3 {[%emt 0:03:09]} O-O {[%emt 0:02:02]} 9. e3 {[%emt 0:00:07] [#]} Qb6 $146 {[%emt 0:01:44]} ({Predecessor:} 9... Bf5 10. Bd3 Bxd3 11. Qxd3 Nbd7 12. O-O-O b5 13. Ne5 Qc7 14. Nxd7 Qxd7 15. Rh3 Qg4 {0-1 (23) Pobor,D-Lamblin,J (1918) Batumi 2014}) 10. Rb1 {[%emt 0:00:13]} Na6 {[%emt 0:21:52]} ({Black should try} 10... Bf5 $11) 11. b4 {[%emt 0:12:55]} Bf5 {[%emt 0:07:42]} 12. Bd3 {[%emt 0:05:09]} Bg6 {[%emt 0:09:45]} (12... Bxd3 $11 {keeps the balance.} 13. Qxd3 Nxb4) 13. Na4 {[%emt 0:01:42]} Qc7 {[%emt 0:02:09]} 14. a3 {[%emt 0:01:19]} Ne4 {[%emt 0:04:08]} (14... Bxd3 $11 15. Qxd3 Rac8) 15. Rc1 {[%emt 0:02:40]} Nb8 $1 {[%emt 0:09:20]} 16. O-O {[%emt 0:00:22]} a6 {[%emt 0:01:35]} 17. Nc5 {[%emt 0:00:30]} Nd7 {[%emt 0:00:32]} 18. a4 {[%emt 0:00:41]} Ndxc5 {[%emt 0:01:32]} 19. bxc5 {[%emt 0:00:17]} Bh5 {[%emt 0:05:04]} 20. Qb3 $2 {[%emt 0:01:09]} (20. Qc2 $16 {and life is bright.}) 20... Rfe8 $2 {[%emt 0:05:51]} (20... Bxf3 $1 $17 {keeps the pressure on.} 21. gxf3 Nd2 {[%mdl 64] Double Attack}) 21. Rc2 {[%emt 0:01:22]} Rab8 {[%emt 0:01:43]} 22. Rb1 {[%emt 0:00:42]} Kh8 {[%emt 0:03:12]} 23. Ne5 {[%emt 0:02:30]} f6 {[%emt 0:01:24]} 24. Bxe4 {[%emt 0:00:18]} fxe5 {[%emt 0:01:22]} 25. Bf3 $2 {[%emt 0:00:20]} (25. Bd3 $14 {keeps the upper hand.}) 25... Bg6 {[%emt 0:00:38] Skewer} 26. Rcb2 {[%emt 0:01:06]} (26. dxe5 {was worth a try.} Qxe5 27. Bd1) 26... Bxb1 {[%emt 0:00:12]} 27. Rxb1 {[%emt 0:00:01]} exd4 {[%emt 0:01:00]} 28. exd4 {[%emt 1:03:07]} Qa5 {[%emt 0:00:29]} 29. Kf1 {[%emt 0:00:00]} Re7 {[%emt 0:00:54]} 30. Qb4 {[%emt 0:00:00]} Qc7 {[%emt 0:02:06]} 31. a5 {[%emt 0:00:00]} Rbe8 {[%emt 0:00:15]} 32. Qc3 {[%emt 0:00:00]} g6 {[%emt 0:00:36]} 33. Qd2 {[%emt 0:00:00]} Kg7 {[%emt 0:01:20]} 34. Qc3 {[%emt 0:00:00]} Qd7 {[%emt 0:01:11]} 35. Qd2 {[%emt 0:00:00]} Qf5 {[%emt 0:01:19]} 36. Rc1 {[%emt 0:00:00]} Rf8 {[%emt 0:01:39]} 37. Rc2 {[%emt 0:00:00]} g5 {[%emt 0:01:46]} 38. Qd1 {[%emt 0:00:00]} Rfe8 {[%emt 0:01:01]} 39. Be2 {[%emt 0:00:00] [#]} h5 $1 {[%emt 0:02:10]} 40. Rd2 {[%emt 0:00:00]} g4 {[%emt 0:01:30]} 41. Qb3 {[%emt 0:00:00]} Qg5 {[%emt 0:01:27]} 42. Qd3 {[%emt 0:00:00] [#]} Rxe2 $1 {[%emt 0:01:03]} 43. Qxe2 {[%emt 0:00:00]} Rxe2 {[%emt 0:00:07]} 44. Kxe2 {[%emt 0:00:00]} Qe7+ {[%emt 0:00:16]} 45. Kf1 {[%emt 0:00:00]} Qe4 {[%emt 0:00:19]} 46. Rd1 {[%emt 0:00:00]} Kf6 {[%emt 0:00:17]} 47. Kg1 {[%emt 0:00:00]} Qc2 {[%emt 0:00:13]} 48. Ra1 {[%emt 0:00:00] [#]} Qc3 $1 {[%emt 0:00:22]} 49. Ra4 {[%emt 0:00:00]} Kf5 {[%emt 0:00:35]} 50. Kf1 {[%emt 0:00:00]} Qc1+ {[%emt 0:00:30]} (50... Qd3+ $142 51. Ke1 Qc3+ 52. Kd1 Ke4 53. Ra2 Kd3 54. f3 Qb3+ 55. Ke1 Qxa2 {[%mdl 64] Double Attack} 56. Kf1 h4 57. fxg4 hxg3 58. g5 Qf2#) 51. Ke2 {[%emt 0:00:00]} Qc2+ {[%emt 0:00:05] Double Attack} 52. Ke3 {[%emt 0:00:00]} Qxa4 {[%emt 0:00:08]} 53. f4 {[%emt 0:12:30]} Qxa5 {[%emt 0:00:23]} 54. Kf2 {[%emt 0:00:00]} Qd2+ {[%emt 0:00:23]} 55. Kg1 {[%emt 0:00:00]} Qxd4+ {[%emt 0:00:07]} 56. Kh2 {[%emt 0:00:00]} a5 {[%emt 0:00:23]} (56... Qe3 $142 57. Kh1 h4 58. gxh4 g3 59. h5 Qe1#) 57. Kh1 {[%emt 0:00:00]} a4 {[%emt 0:00:05]} (57... h4 $142 58. Kh2 hxg3+ 59. Kxg3 Qxf4+ 60. Kh4 Qh2#) 58. Kh2 {[%emt 0:00:00] [#]} a3 {[%emt 0:00:11]} (58... Qf2 $142 $1 59. Kh1 h4 60. gxh4 g3 61. h5 Qf1#) 59. Kh1 {[%emt 0:00:00]} a2 {[%emt 0:00:10]} 60. Kh2 {[%emt 0:00:00] [#]} Qf2 $1 {[%emt 0:00:17]} 61. Kh1 {[%emt 0:00:00]} 0-1

[Event "7th Cattolica Open-B 2020"]
[Site "Cattolica"]
[Date "2020.09.02"]
[Round "3.8"]
[White "Modena, Giorgio"]
[Black "Bosio, Andrea"]
[Result "1/2-1/2"]
[ECO "C97"]
[WhiteElo "1869"]
[BlackElo "1659"]
[Annotator "NA RC"]
[PlyCount "141"]
[EventDate "2020.08.31"]
[EventType "swiss"]
[EventCountry "ITA"]
[SourceTitle "playchess.com"]
[Source "ChessBase"]
[SourceQuality "1"]
[TimeControl "5400+30"]

{[%evp 21,141,24,48,14,21,18,14,10,18,8,23,0,97,0,0,0,0,0,20,0,8,-87,-75,-94,-88,-115,-97,-103,-102,-274,-101,-191,-106,-121,-40,-108,-26,-91,0,-87,-45,-183,-40,-356,-33,-41,0,0,18,-6,0,-85,-85,-85,0,-16,0,0,0,-28,-22,-118,-114,-230,-16,-21,0,-175,-19,-75,-72,-77,-74,-85,-70,-84,-92,-102,-58,-79,-70,-74,-41,-31,-8,-8,-8,-8,0,-8,-8,-21,-8,-83,-72,-135,-103,-97,0,-263,-8,-8,-12,-8,-3,-8,-3,-3,-3,-8,0,0,0,0,0,-3,-8,-29,0,-7,0,0]} 1. e4 {[%emt 0:00:00]} e5 {[%emt 0:00:00]} 2. Nf3 {[%emt 0:00:01]} Nc6 {[%emt 0:00:00]} 3. Bb5 {[%emt 0:00:04]} a6 {[%emt 0:00:01]} 4. Ba4 {[%emt 0:00:07]} Nf6 {[%emt 0:00:12]} 5. O-O {[%emt 0:00:05]} Be7 {[%emt 0:00:07]} 6. Re1 {[%emt 0:00:08]} b5 {[%emt 0:00:04]} 7. Bb3 {[%emt 0:00:04]} d6 {[%emt 0:00:07]} 8. c3 {[%emt 0:00:08]} O-O {[%emt 0:00:08]} 9. h3 {[%emt 0:01:11]} Na5 {[%emt 0:00:09]} 10. Bc2 {[%emt 0:00:08]} c5 {[%emt 0:00:13]} 11. d4 {[%emt 0:03:00]} Qc7 {[%emt 0:00:13]} 12. d5 {[%emt 0:01:47]} Nd7 {[%emt 0:02:06] C97: Closed Ruy Lopez: Chigorin Defence: 11 d4 Qc7, sidelines.} 13. Nbd2 {[%emt 0:02:04]} Nb6 {[%emt 0:01:03]} 14. b3 {[%emt 0:02:59]} Bd7 {[%emt 0:01:59]} 15. Nf1 {[%emt 0:01:11]} Rfc8 {[%emt 0:03:17] [#]} 16. Ne3 $146 {[%emt 0:04:07]} ({Predecessor:} 16. Be3 Nb7 17. Ng3 Bf8 18. Nh2 g6 19. Ng4 Bg7 20. Qf3 Bxg4 21. Qxg4 Nd7 22. h4 {1-0 (50) Beerheide,W-Bilo,H Detmold 1960}) 16... Nb7 {[%emt 0:08:20] [#]} (16... c4 $11) 17. Nh2 {[%emt 0:12:23]} ({White should play} 17. c4 $1 $16) 17... c4 {[%emt 0:02:08]} 18. Bd2 {[%emt 0:04:17]} a5 {[%emt 0:02:59]} 19. Qf3 {[%emt 0:07:57]} Bf8 {[%emt 0:09:52]} 20. Rec1 {[%emt 0:03:46]} Nc5 {[%emt 0:03:01]} 21. Nf5 {[%emt 0:08:44]} (21. bxc4 $11 Nxc4 22. Nxc4 bxc4 23. Nf1) 21... cxb3 {[%emt 0:06:56]} 22. axb3 {[%emt 0:00:11]} a4 {[%emt 0:02:25]} 23. bxa4 {[%emt 0:04:50]} Nc4 {[%emt 0:02:42]} 24. Be1 {[%emt 0:01:32]} bxa4 {[%emt 0:02:19]} 25. Qg3 $2 {[%emt 0:03:14]} (25. Ra2 $17) 25... Kh8 $2 {[%emt 0:03:10]} (25... Bxf5 $1 $19 {and Black stays clearly on top.} 26. exf5 Nb3 {[%mdl 64] Double Attack}) 26. Rcb1 {[%emt 0:04:44]} (26. Ra2 $17) 26... a3 {[%emt 0:03:02]} (26... Rcb8 $19 27. Qf3 Rxb1 28. Bxb1 Qb6) 27. Ne3 {[%emt 0:00:54]} Nb2 {[%emt 0:06:09]} (27... Ba4 $17 28. Bxa4 Rxa4 29. Nxc4 Nxe4) 28. Ra2 {[%emt 0:01:53] [#]} ({White should play} 28. Qf3 $1 $15) 28... Rcb8 {[%emt 0:02:40]} (28... Ncd3 $1 $17 {[%cal Rd3e1]} 29. Bxd3 Nxd3) 29. Nhf1 {[%emt 0:04:11]} (29. Qf3 $15) 29... Bb5 {[%emt 0:02:22] [#]} (29... Nbd3 $17 30. Bd2 Rxb1 31. Bxb1 Qb7 32. Bxd3 Nxd3) 30. Nd2 {[%emt 0:05:27]} (30. c4 $1 $11 {[%mdl 512] keeps the balance.} Be8 (30... Nxc4 31. Rxb5) 31. Rba1) 30... Bd3 {[%emt 0:02:07]} 31. c4 {[%emt 0:02:06] [#]} (31. Rba1 $15) 31... Ra7 {[%emt 0:13:31]} ({Black should try} 31... g6 $1 $19 32. Qf3 Bh6) 32. Bxd3 $4 {[%emt 0:02:44]} (32. Rba1 $15) 32... Ncxd3 $2 {[%emt 0:01:58]} (32... Nbxd3 $19 33. Rba1 Rb2) 33. Nc2 $1 {[%emt 0:02:26]} Nxe1 {[%emt 0:02:21]} 34. Nxe1 {[%emt 0:02:18]} Rba8 {[%emt 0:01:13]} 35. Rba1 {[%emt 0:05:47]} Qc5 {[%emt 0:04:32]} 36. Qc3 {[%emt 0:03:19]} (36. Qb3 $11) 36... Ra4 {[%emt 0:02:29]} 37. Rc1 {[%emt 0:02:03]} Rc8 {[%emt 0:02:14]} ({Black should play} 37... g6 $17 38. Nd3 Nxd3 39. Qxd3 Bh6) 38. Nd3 {[%emt 0:01:23]} Nxd3 {[%emt 0:01:29]} 39. Qxd3 {[%emt 0:00:05]} g6 {[%emt 0:00:56]} 40. Rc3 {[%emt 0:01:06]} Bh6 {[%emt 0:01:05]} 41. Nb3 {[%emt 0:02:51]} (41. Nb1 $11) 41... Qb4 {[%emt 0:00:55]} 42. Rcc2 $1 $11 {[%emt 0:01:11]} (42. Qc2 $17 {keeps fighting.}) 42... Bf8 $2 {[%emt 0:05:25]} ({But not} 42... Rxc4 43. Rxc4 Qxc4 44. Qxc4) (42... Kg7 $19 43. Nd2 Bxd2 44. Qxd2 Rxc4 45. Qxb4 Rcxb4) 43. Nd2 $1 {[%emt 0:00:18]} Bh6 {[%emt 0:00:23]} 44. Nf1 $2 {[%emt 0:01:30]} Bg5 {[%emt 0:00:59]} ({Better is} 44... Qb1 $19 45. Qe2 Rb8) 45. Rc3 {[%emt 0:00:26]} (45. Qf3 $11 {keeps the balance.}) 45... Rxc4 {[%emt 0:00:38]} 46. Rcxa3 {[%emt 0:00:30]} Rxa3 {[%emt 0:00:21]} 47. Qxa3 {[%emt 0:00:29]} Qxa3 {[%emt 0:00:11]} 48. Rxa3 {[%emt 0:00:10]} Rxe4 {[%emt 0:00:16]} 49. Ra7 {[%emt 0:01:00]} Rd4 {[%emt 0:00:55]} 50. Rxf7 {[%emt 0:00:05]} Rxd5 {[%emt 0:00:06]} 51. g3 {[%emt 0:00:28]} Rd1 {[%emt 0:00:31]} 52. Kg2 {[%emt 0:00:05]} d5 {[%emt 0:00:24]} 53. h4 {[%emt 0:00:15]} Bh6 {[%emt 0:00:32]} 54. Nh2 {[%emt 0:00:09]} Kg8 {[%emt 0:03:45]} 55. Rd7 {[%emt 0:00:16]} Bg7 {[%emt 0:00:00]} 56. Nf3 {[%emt 0:00:34]} h6 {[%emt 0:00:00]} 57. g4 {[%emt 0:00:18]} (57. h5 $11) 57... e4 {[%emt 0:00:00]} 58. Ng1 {[%emt 0:00:15]} (58. Rd8+ $142 Kf7 59. Rd7+ Kf8 60. Nh2) 58... d4 {[%emt 0:00:00]} 59. Ne2 {[%emt 0:00:19]} d3 {[%emt 0:00:00]} (59... Be5 $17 60. Rd5 d3) 60. Nf4 $2 {[%emt 0:00:02]} (60. Ng3 $11) 60... g5 $2 {[%emt 0:00:39]} (60... d2 $19 61. Nxg6 Bf6) 61. hxg5 {[%emt 0:00:53]} hxg5 {[%emt 0:00:01]} 62. Ne6 {[%emt 0:01:03]} Bf6 {[%emt 0:01:21]} 63. Nc5 {[%emt 0:00:02]} Re1 {[%emt 0:00:53]} 64. f3 {[%emt 0:00:52]} Re2+ {[%emt 0:00:32]} (64... e3 $5 65. Ne4 $8 Be5 66. Rxd3 Bf4 $15) 65. Kf1 {[%emt 0:00:01]} exf3 {[%emt 0:00:51]} 66. Rxd3 {[%emt 0:00:17]} Rg2 {[%emt 0:00:24]} 67. Ne4 {[%emt 0:01:09]} Be7 {[%emt 0:00:28]} 68. Rxf3 {[%emt 0:03:23]} Rxg4 {[%emt 0:00:23]} 69. Nf2 {[%emt 0:00:27]} Rf4 {[%emt 0:00:17]} 70. Rxf4 {[%emt 0:00:28]} gxf4 {[%emt 0:00:03]} 71. Nd3 $11 {[%emt 0:01:00]} 1/2-1/2